[Event "RUS-chT Men Rapid 2019"]
[Site "Sochi"]
[Date "2019.10.18"]
[Round "3.20"]
[White "Ozgibcev, Anatoly"]
[Black "Rozum, Ivan"]
[Result "0-1"]
[ECO "B10"]
[WhiteElo "2367"]
[BlackElo "2599"]
[Annotator "ChessBase"]
[PlyCount "98"]
[EventDate "2019.10.18"]
[EventType "swiss"]
[EventCountry "RUS"]
[SourceTitle "playchess.com"]
[Source "ChessBase"]
[SourceQuality "1"]
[TimeControl "900+10"]

1. e4 {[%emt 0:00:00]} c6 {[%emt 0:00:24]} 2. d3 {[%emt 0:00:00]} d5 {[%emt 0:00:02]} 3. Nd2 {[%emt 0:00:00]} Qc7 {[%emt 0:00:04]} 4. Ngf3 {[%emt 0:00:00]} Bg4 {[%emt 0:00:02]} 5. Be2 {[%emt 0:00:03]} Nf6 {[%emt 0:00:03]} 6. O-O {[%emt 0:00:03]} Nbd7 {[%emt 0:00:07]} 7. c3 {[%emt 0:00:09]} e6 {[%emt 0:00:19]} 8. Qc2 {[%emt 0:00:41]} Bd6 {[%emt 0:00:08]} 9. h3 {[%emt 0:00:02]} Bh5 {[%emt 0:00:05]} 10. Re1 {[%emt 0:00:31]} O-O {[%emt 0:00:55]} 11. d4 {[%emt 0:00:31]} dxe4 {[%emt 0:00:49]} 12. Ng5 {[%emt 0:00:57]} e3 {[%emt 0:01:11]} 13. Nde4 {[%emt 0:01:25]} exf2+ {[%emt 0:00:26]} 14. Nxf2 {[%emt 0:00:08]} Bg6 {[%emt 0:00:43]} 15. Bd3 {[%emt 0:00:02]} Bh2+ {[%emt 0:00:26]} 16. Kh1 {[%emt 0:00:37]} Bxd3 {[%emt 0:01:05]} 17. Qxd3 {[%emt 0:00:18]} Bf4 {[%emt 0:00:09]} 18. Bxf4 {[%emt 0:00:25]} Qxf4 {[%emt 0:00:01]} 19. Nfe4 {[%emt 0:00:17]} Nxe4 {[%emt 0:00:16]} 20. Nxe4 {[%emt 0:00:06]} Nf6 {[%emt 0:00:04]} 21. Nxf6+ {[%emt 0:00:52]} Qxf6 {[%emt 0:00:02]} 22. Re5 {[%emt 0:00:01]} Rad8 {[%emt 0:00:15]} 23. Qg3 {[%emt 0:00:24]} Rd7 {[%emt 0:00:37]} 24. Kg1 {[%emt 0:00:16]} Rfd8 {[%emt 0:00:03]} 25. Rf1 {[%emt 0:00:01]} Qe7 {[%emt 0:00:07]} 26. Rf4 {[%emt 0:00:14]} Rd5 {[%emt 0:00:08]} 27. Rg4 {[%emt 0:00:03]} g6 {[%emt 0:00:05]} 28. h4 {[%emt 0:00:03]} Rxe5 {[%emt 0:00:23]} 29. dxe5 {[%emt 0:00:01]} Qc5+ {[%emt 0:00:09]} 30. Kh2 {[%emt 0:00:11]} Rd1 {[%emt 0:00:09]} 31. Rd4 {[%emt 0:01:20]} Rxd4 {[%emt 0:00:10]} 32. cxd4 {[%emt 0:00:02]} Qxd4 {[%emt 0:00:02]} 33. Qg5 {[%emt 0:00:01]} h5 {[%emt 0:00:46]} 34. b3 {[%emt 0:00:36]} c5 {[%emt 0:00:15]} 35. a4 {[%emt 0:00:10]} b6 {[%emt 0:00:20]} 36. g3 {[%emt 0:00:14]} Qf2+ {[%emt 0:02:19]} 37. Kh1 {[%emt 0:00:02]} Qf3+ {[%emt 0:00:02]} 38. Kh2 {[%emt 0:00:09]} Qe2+ {[%emt 0:00:28]} 39. Kh1 {[%emt 0:00:10]} Qd1+ {[%emt 0:00:02]} 40. Kh2 {[%emt 0:00:03]} Qc2+ {[%emt 0:00:02]} 41. Kh1 {[%emt 0:00:06]} Qxb3 {[%emt 0:00:09]} 42. Qd8+ {[%emt 0:00:24]} Kh7 {[%emt 0:00:02]} 43. Qe7 {[%emt 0:00:17]} Qf3+ {[%emt 0:00:04]} 44. Kh2 {[%emt 0:00:04]} c4 {[%emt 0:00:49]} 45. Qxa7 {[%emt 0:00:13]} c3 {[%emt 0:00:27]} 46. Qxb6 {[%emt 0:00:37]} c2 {[%emt 0:00:04]} 47. Qc7 {[%emt 0:00:45]} Qf2+ {[%emt 0:00:06]} 48. Kh3 {[%emt 0:00:19]} Qf1+ {[%emt 0:00:02]} 49. Kh2 {[%emt 0:00:01]} c1=Q {[%emt 0:00:03]} 0-1

[Event "RUS-chT Men Rapid 2019"]
[Site "Sochi"]
[Date "2019.10.18"]
[Round "3.21"]
[White "Nozdrachev, Vladislav"]
[Black "Alexeev, Alexey"]
[Result "1-0"]
[ECO "B30"]
[WhiteElo "2494"]
[BlackElo "2252"]
[Annotator "ChessBase"]
[PlyCount "158"]
[EventDate "2019.10.18"]
[EventType "swiss"]
[EventCountry "RUS"]
[SourceTitle "playchess.com"]
[Source "ChessBase"]
[SourceQuality "1"]
[TimeControl "900+10"]

1. e4 {[%emt 0:00:00]} c5 {[%emt 0:00:00]} 2. Nf3 {[%emt 0:00:00]} Nc6 {[%emt 0:00:00]} 3. Bb5 {[%emt 0:00:00]} d6 {[%emt 0:00:15]} 4. Bxc6+ {[%emt 0:00:02]} bxc6 {[%emt 0:00:02]} 5. O-O {[%emt 0:00:04]} Bg4 {[%emt 0:00:05]} 6. h3 {[%emt 0:00:10]} Bxf3 {[%emt 0:00:38]} 7. Qxf3 {[%emt 0:00:04]} e6 {[%emt 0:00:05]} 8. e5 {[%emt 0:00:57]} d5 {[%emt 0:00:07]} 9. d3 {[%emt 0:00:02]} Ne7 {[%emt 0:00:48]} 10. b3 {[%emt 0:00:04]} Nf5 {[%emt 0:00:38]} 11. Bb2 {[%emt 0:00:13]} Be7 {[%emt 0:01:30]} 12. Nc3 {[%emt 0:00:36]} Nd4 {[%emt 0:01:33]} 13. Qd1 {[%emt 0:01:18]} Qc7 {[%emt 0:00:53]} 14. Re1 {[%emt 0:00:22]} O-O {[%emt 0:00:40]} 15. Na4 {[%emt 0:00:03]} f6 {[%emt 0:00:24]} 16. Bxd4 {[%emt 0:00:10]} cxd4 {[%emt 0:00:31]} 17. Qg4 {[%emt 0:00:05]} f5 {[%emt 0:06:18]} 18. Qxd4 {[%emt 0:00:03]} c5 {[%emt 0:00:02]} 19. Qf4 {[%emt 0:00:27]} g5 {[%emt 0:00:23]} 20. Qf3 {[%emt 0:00:02]} Kh8 {[%emt 0:00:43]} 21. c4 {[%emt 0:00:03]} d4 {[%emt 0:00:07]} 22. b4 {[%emt 0:01:13]} cxb4 {[%emt 0:00:25]} 23. c5 {[%emt 0:00:02]} Rac8 {[%emt 0:00:12]} 24. Rac1 {[%emt 0:00:04]} Qa5 {[%emt 0:00:23]} 25. Qd1 {[%emt 0:00:27]} Rc6 {[%emt 0:00:25]} 26. Qb3 {[%emt 0:00:34]} Ra6 {[%emt 0:01:32]} 27. c6 {[%emt 0:00:02]} Qd5 {[%emt 0:00:13]} 28. c7 {[%emt 0:01:13]} Rc8 {[%emt 0:00:14]} 29. Nc5 {[%emt 0:03:27]} Rc6 {[%emt 0:00:16]} 30. Qxd5 {[%emt 0:00:14]} exd5 {[%emt 0:00:01]} 31. Nb3 {[%emt 0:00:02]} R8xc7 {[%emt 0:00:12]} 32. Rxc6 {[%emt 0:00:03]} Rxc6 {[%emt 0:00:02]} 33. Nxd4 {[%emt 0:00:01]} Rc7 {[%emt 0:00:36]} 34. Nxf5 {[%emt 0:00:03]} Kg8 {[%emt 0:00:03]} 35. Nxe7+ {[%emt 0:00:44]} Rxe7 {[%emt 0:00:00]} 36. e6 {[%emt 0:00:01]} Kg7 {[%emt 0:00:10]} 37. Re5 {[%emt 0:00:04]} Kf6 {[%emt 0:00:01]} 38. Rxd5 {[%emt 0:00:01]} Rxe6 {[%emt 0:00:08]} 39. Ra5 {[%emt 0:00:01]} a6 {[%emt 0:00:17]} 40. Kf1 {[%emt 0:00:36]} h5 {[%emt 0:00:10]} 41. Ra4 {[%emt 0:00:04]} Rb6 {[%emt 0:00:12]} 42. Ke2 {[%emt 0:00:01]} g4 {[%emt 0:00:17]} 43. h4 {[%emt 0:00:01]} Re6+ {[%emt 0:00:23]} 44. Kd2 {[%emt 0:00:03]} Rb6 {[%emt 0:00:11]} 45. Ra5 {[%emt 0:00:04]} Kg6 {[%emt 0:00:09]} 46. f3 {[%emt 0:01:37]} gxf3 {[%emt 0:00:07]} 47. gxf3 {[%emt 0:00:01]} b3 {[%emt 0:00:12]} 48. axb3 {[%emt 0:00:04]} Rxb3 {[%emt 0:00:00]} 49. Rxa6+ {[%emt 0:00:03]} Kf5 {[%emt 0:00:03]} 50. Ke3 {[%emt 0:00:13]} Rb1 {[%emt 0:00:05]} 51. Ra5+ {[%emt 0:00:01]} Kg6 {[%emt 0:00:04]} 52. d4 {[%emt 0:01:06]} Rh1 {[%emt 0:00:03]} 53. Rg5+ {[%emt 0:00:02]} Kh6 {[%emt 0:00:02]} 54. d5 {[%emt 0:00:02]} Rxh4 {[%emt 0:00:01]} 55. d6 {[%emt 0:00:23]} Rh1 {[%emt 0:00:02]} 56. Rd5 {[%emt 0:00:03]} Re1+ {[%emt 0:00:01]} 57. Kf4 {[%emt 0:00:01]} Re8 {[%emt 0:00:01]} 58. d7 {[%emt 0:00:01]} Rd8 {[%emt 0:00:01]} 59. Rd6+ {[%emt 0:00:02]} Kg7 {[%emt 0:00:01]} 60. Kg5 {[%emt 0:00:01]} Kf7 {[%emt 0:00:08]} 61. Kxh5 {[%emt 0:00:03]} Ke7 {[%emt 0:00:19]} 62. Rd3 {[%emt 0:00:02]} Rh8+ {[%emt 0:00:51]} 63. Kg6 {[%emt 0:00:01]} Kd8 {[%emt 0:00:01]} 64. f4 {[%emt 0:00:05]} Rh1 {[%emt 0:00:05]} 65. f5 {[%emt 0:00:01]} Rg1+ {[%emt 0:00:02]} 66. Kf7 {[%emt 0:00:01]} Rf1 {[%emt 0:00:15]} 67. f6 {[%emt 0:00:01]} Rf2 {[%emt 0:00:05]} 68. Rd5 {[%emt 0:00:11]} Rg2 {[%emt 0:00:09]} 69. Ke6 {[%emt 0:00:04]} Re2+ {[%emt 0:00:07]} 70. Kf5 {[%emt 0:00:04]} Rf2+ {[%emt 0:00:05]} 71. Kg6 {[%emt 0:00:02]} Rg2+ {[%emt 0:00:09]} 72. Rg5 {[%emt 0:00:02]} Rf2 {[%emt 0:00:05]} 73. f7 {[%emt 0:00:35]} Kxd7 {[%emt 0:00:14]} 74. Kg7 {[%emt 0:00:01]} Ke7 {[%emt 0:00:18]} 75. Re5+ {[%emt 0:00:02]} Kd6 {[%emt 0:00:08]} 76. Re8 {[%emt 0:00:01]} Rg2+ {[%emt 0:00:07]} 77. Kh6 {[%emt 0:00:02]} Rh2+ {[%emt 0:00:42]} 78. Kg5 {[%emt 0:00:01]} Rg2+ {[%emt 0:00:07]} 79. Kh4 {[%emt 0:00:01]} Kd5 1-0

[Event "RUS-chT Men Rapid 2019"]
[Site "Sochi"]
[Date "2019.10.18"]
[Round "3.22"]
[White "Truskavetsky, Alexandr"]
[Black "Vakhlamov, Igor L."]
[Result "0-1"]
[ECO "A40"]
[WhiteElo "2398"]
[BlackElo "2413"]
[Annotator "NA"]
[PlyCount "134"]
[EventDate "2019.10.18"]
[EventType "swiss"]
[EventCountry "RUS"]
[SourceTitle "playchess.com"]
[Source "ChessBase"]
[SourceQuality "1"]
[TimeControl "900+10"]

1. d4 {[%emt 0:00:00]} Nf6 {[%emt 0:00:00]} 2. c4 {[%emt 0:00:00]} e6 {[%emt 0:00:00]} 3. g3 {[%emt 0:00:00]} d5 {[%emt 0:00:00]} 4. Nf3 {[%emt 0:00:02]} Bb4+ {[%emt 0:00:00]} 5. Bd2 {[%emt 0:00:06]} Be7 {[%emt 0:00:02]} 6. Bg2 {[%emt 0:00:06]} O-O {[%emt 0:00:03]} 7. O-O {[%emt 0:00:03]} Nbd7 {[%emt 0:00:05]} 8. Bf4 {[%emt 0:00:48]} dxc4 {[%emt 0:00:25]} 9. Nbd2 {[%emt 0:01:38]} Nb6 {[%emt 0:01:04]} 10. e4 {[%emt 0:03:47]} Bd7 {[%emt 0:03:34]} 11. Qc2 {[%emt 0:01:46]} c5 {[%emt 0:02:32]} 12. dxc5 {[%emt 0:00:50]} Bxc5 {[%emt 0:00:01]} 13. e5 {[%emt 0:02:33]} Nfd5 {[%emt 0:00:09]} 14. Ng5 {[%emt 0:00:15]} g6 {[%emt 0:00:12]} 15. Nge4 {[%emt 0:01:39]} Be7 {[%emt 0:01:29]} 16. Bh6 {[%emt 0:00:17]} Re8 {[%emt 0:00:02]} 17. Nd6 {[%emt 0:01:17]} Bxd6 {[%emt 0:03:19]} 18. exd6 {[%emt 0:00:01]} Bc6 {[%emt 0:01:42]} 19. Nxc4 {[%emt 0:01:03]} Nxc4 {[%emt 0:00:02]} 20. Qxc4 {[%emt 0:00:01]} Qxd6 {[%emt 0:00:08]} 21. Rfe1 {[%emt 0:00:10]} f6 {[%emt 0:00:28]} 22. Rad1 {[%emt 0:00:08]} Rad8 {[%emt 0:00:12]} 23. h4 {[%emt 0:00:35]} a6 {[%emt 0:00:04]} 24. a3 {[%emt 0:00:14]} Qe7 {[%emt 0:00:18]} 25. b4 {[%emt 0:00:10]} Qf7 {[%emt 0:00:18]} 26. Qc5 {[%emt 0:00:21]} e5 {[%emt 0:00:11]} 27. Kh2 {[%emt 0:00:19]} Ne7 {[%emt 0:00:11]} 28. Bf1 {[%emt 0:00:12]} Bd5 {[%emt 0:00:22]} 29. Bc1 {[%emt 0:01:09]} Nf5 {[%emt 0:00:11]} 30. Bb2 {[%emt 0:00:06]} Bb3 {[%emt 0:00:11]} 31. Rxd8 {[%emt 0:00:15]} Rxd8 {[%emt 0:00:01]} 32. Qc3 {[%emt 0:00:18]} Nd4 {[%emt 0:00:26]} 33. Bg2 {[%emt 0:00:07]} Bd5 {[%emt 0:00:04]} 34. f4 {[%emt 0:00:05]} Bxg2 {[%emt 0:00:08]} 35. Kxg2 {[%emt 0:00:01]} Qd5+ {[%emt 0:00:03]} 36. Kf2 {[%emt 0:00:05]} Qe6 {[%emt 0:02:27]} 37. Kg2 {[%emt 0:00:31]} Qd5+ {[%emt 0:00:08]} 38. Kf2 {[%emt 0:00:00]} Nb5 {[%emt 0:00:01]} 39. Qe3 {[%emt 0:00:02]} Qd2+ {[%emt 0:00:01]} 40. Re2 {[%emt 0:00:01]} Qxe3+ {[%emt 0:00:03]} 41. Kxe3 {[%emt 0:00:05]} exf4+ {[%emt 0:00:03]} 42. Kxf4 {[%emt 0:00:09]} Kf7 {[%emt 0:00:01]} 43. g4 {[%emt 0:00:10]} Nc7 {[%emt 0:00:09]} 44. Rf2 {[%emt 0:00:18]} Rd6 {[%emt 0:00:23]} 45. h5 {[%emt 0:00:25]} Ne6+ {[%emt 0:00:04]} 46. Ke4 {[%emt 0:00:04]} Ng5+ {[%emt 0:00:02]} 47. Ke3 {[%emt 0:00:02]} Re6+ {[%emt 0:00:06]} 48. Kd3 {[%emt 0:00:12]} Rd6+ {[%emt 0:00:05]} 49. Ke3 {[%emt 0:00:02]} Re6+ {[%emt 0:00:21]} 50. Kd3 {[%emt 0:00:01]} Ne4 {[%emt 0:00:32]} 51. Rf4 {[%emt 0:00:11]} Nd6 {[%emt 0:00:11]} 52. Rf2 {[%emt 0:00:08]} f5 {[%emt 0:00:16]} 53. hxg6+ {[%emt 0:00:15]} hxg6 {[%emt 0:00:06]} 54. gxf5 {[%emt 0:00:06]} Nxf5 {[%emt 0:00:27]} 55. Rh2 {[%emt 0:00:14]} b5 {[%emt 0:00:18]} 56. Rh7+ {[%emt 0:00:18]} Ke8 {[%emt 0:00:01]} 57. Ra7 {[%emt 0:00:10]} g5 {[%emt 0:00:15]} 58. Rh7 {[%emt 0:00:13]} g4 {[%emt 0:00:16]} 59. Rh5 {[%emt 0:00:08]} Re3+ {[%emt 0:00:03]} 60. Kd2 {[%emt 0:00:12]} Rf3 {[%emt 0:00:01]} 61. Rg5 {[%emt 0:00:11]} Rf2+ {[%emt 0:00:05]} 62. Kc1 {[%emt 0:00:27]} g3 {[%emt 0:00:18]} 63. Be5 {[%emt 0:00:14]} g2 {[%emt 0:00:02]} 64. Bh2 {[%emt 0:00:02]} Kf7 {[%emt 0:00:21]} 65. Kd1 {[%emt 0:00:21]} Kf6 {[%emt 0:00:02]} 66. Rg8 {[%emt 0:00:01]} Kf7 {[%emt 0:00:16]} 67. Rg5 {[%emt 0:00:03]} Nd4 {[%emt 0:00:11]} 0-1

[Event "RUS-chT Men Rapid 2019"]
[Site "Sochi"]
[Date "2019.10.18"]
[Round "3.23"]
[White "Tsoi, Dmitry"]
[Black "Linker, Mikhail"]
[Result "1-0"]
[ECO "A03"]
[WhiteElo "2329"]
[BlackElo "2269"]
[Annotator "NA"]
[PlyCount "81"]
[EventDate "2019.10.18"]
[EventType "swiss"]
[EventCountry "RUS"]
[SourceTitle "playchess.com"]
[Source "ChessBase"]
[SourceQuality "1"]
[TimeControl "900+10"]

1. f4 {[%emt 0:00:00]} d5 {[%emt 0:00:10]} 2. Nf3 {[%emt 0:00:00]} Nf6 {[%emt 0:00:03]} 3. e3 {[%emt 0:00:01]} g6 {[%emt 0:00:14]} 4. d4 {[%emt 0:00:01]} Bg7 {[%emt 0:00:03]} 5. Bd3 {[%emt 0:00:02]} b6 {[%emt 0:00:21]} 6. c3 {[%emt 0:00:12]} O-O {[%emt 0:00:04]} 7. Qe2 {[%emt 0:00:00]} Bb7 {[%emt 0:00:03]} 8. O-O {[%emt 0:00:03]} Qc8 {[%emt 0:00:10]} 9. b4 {[%emt 0:00:15]} c5 {[%emt 0:00:29]} 10. Nbd2 {[%emt 0:00:17]} a5 {[%emt 0:01:11]} 11. bxc5 {[%emt 0:00:04]} bxc5 {[%emt 0:00:02]} 12. Ba3 {[%emt 0:00:03]} Nbd7 {[%emt 0:00:16]} 13. Ne5 {[%emt 0:00:04]} Ba6 {[%emt 0:02:50]} 14. Bxa6 {[%emt 0:00:02]} Rxa6 {[%emt 0:00:01]} 15. Nb3 {[%emt 0:00:02]} c4 {[%emt 0:00:20]} 16. Nd2 {[%emt 0:00:03]} Re8 {[%emt 0:00:17]} 17. e4 {[%emt 0:00:01]} e6 {[%emt 0:00:12]} 18. g4 {[%emt 0:00:04]} Qc7 {[%emt 0:01:02]} 19. Rab1 {[%emt 0:00:30]} Nb6 {[%emt 0:03:03]} 20. Rf3 {[%emt 0:01:09]} Nxe4 {[%emt 0:00:46]} 21. Nxe4 {[%emt 0:02:22]} dxe4 {[%emt 0:00:02]} 22. Qxe4 {[%emt 0:00:02]} f5 {[%emt 0:00:41]} 23. Qc6 {[%emt 0:00:02]} Qxc6 {[%emt 0:00:04]} 24. Nxc6 {[%emt 0:00:01]} Nd5 {[%emt 0:00:31]} 25. Nb8 {[%emt 0:00:01]} Ra7 {[%emt 0:02:33]} 26. Bc5 {[%emt 0:00:48]} Ra8 {[%emt 0:00:13]} 27. Nd7 {[%emt 0:00:45]} Rac8 {[%emt 0:02:41]} 28. Rb7 {[%emt 0:00:48]} Rc7 {[%emt 0:00:07]} 29. Rxc7 {[%emt 0:00:01]} Nxc7 {[%emt 0:00:02]} 30. Nb6 {[%emt 0:00:07]} Nd5 {[%emt 0:00:05]} 31. Nxc4 {[%emt 0:00:03]} Rb8 {[%emt 0:00:56]} 32. Nxa5 {[%emt 0:00:10]} Rb1+ {[%emt 0:00:12]} 33. Kg2 {[%emt 0:01:02]} Rb2+ {[%emt 0:00:10]} 34. Rf2 {[%emt 0:00:11]} Nxf4+ {[%emt 0:00:23]} 35. Kf3 {[%emt 0:00:01]} Rxf2+ {[%emt 0:00:14]} 36. Kxf2 {[%emt 0:00:01]} Nd3+ {[%emt 0:00:15]} 37. Ke3 {[%emt 0:00:08]} Nxc5 {[%emt 0:00:01]} 38. dxc5 {[%emt 0:00:01]} Bf8 {[%emt 0:00:05]} 39. Nb7 {[%emt 0:00:06]} Kf7 {[%emt 0:00:04]} 40. a4 {[%emt 0:00:13]} e5 {[%emt 0:00:05]} 41. a5 {[%emt 0:00:10]} 1-0

[Event "RUS-chT Men Rapid 2019"]
[Site "Sochi"]
[Date "2019.10.18"]
[Round "3.24"]
[White "Pervakov, Sergey"]
[Black "Frolov, Aleksey G."]
[Result "1/2-1/2"]
[ECO "C28"]
[WhiteElo "2093"]
[BlackElo "2093"]
[Annotator "NA"]
[PlyCount "154"]
[EventDate "2019.10.18"]
[EventType "swiss"]
[EventCountry "RUS"]
[SourceTitle "playchess.com"]
[Source "ChessBase"]
[SourceQuality "1"]
[TimeControl "900+10"]

1. e4 {[%emt 0:00:00]} e5 {[%emt 0:00:00]} 2. Nc3 {[%emt 0:00:03]} Nf6 {[%emt 0:00:00]} 3. Bc4 {[%emt 0:00:05]} Nc6 {[%emt 0:00:00]} 4. d3 {[%emt 0:00:05]} Na5 {[%emt 0:00:02]} 5. Bb3 {[%emt 0:00:03]} Be7 {[%emt 0:00:08]} 6. Nge2 {[%emt 0:00:56]} O-O {[%emt 0:00:07]} 7. O-O {[%emt 0:00:08]} Nxb3 {[%emt 0:00:02]} 8. axb3 {[%emt 0:00:01]} d5 {[%emt 0:00:01]} 9. exd5 {[%emt 0:00:36]} Nxd5 {[%emt 0:00:03]} 10. f4 {[%emt 0:02:23]} Bc5+ {[%emt 0:02:17]} 11. Kh1 {[%emt 0:00:02]} exf4 {[%emt 0:01:07]} 12. Nxd5 {[%emt 0:00:08]} Qxd5 {[%emt 0:00:02]} 13. Nc3 {[%emt 0:00:25]} Qc6 {[%emt 0:00:44]} 14. Bxf4 {[%emt 0:00:34]} Be6 {[%emt 0:00:31]} 15. Qh5 {[%emt 0:01:10]} Bd4 {[%emt 0:00:28]} 16. Ra5 {[%emt 0:02:42]} f6 {[%emt 0:01:43]} 17. Qb5 {[%emt 0:01:09]} Qb6 {[%emt 0:03:13]} 18. Re1 {[%emt 0:04:32]} Rfe8 {[%emt 0:02:21]} 19. Qxb6 {[%emt 0:00:25]} cxb6 {[%emt 0:00:25]} 20. Raa1 {[%emt 0:00:48]} a6 {[%emt 0:00:04]} 21. Be3 {[%emt 0:00:39]} Bxc3 {[%emt 0:01:03]} 22. bxc3 {[%emt 0:00:10]} b5 {[%emt 0:00:03]} 23. Kg1 {[%emt 0:00:41]} Rac8 {[%emt 0:00:02]} 24. Bd2 {[%emt 0:00:14]} Kf7 {[%emt 0:00:05]} 25. Kf2 {[%emt 0:00:01]} Rc6 {[%emt 0:00:27]} 26. Re3 {[%emt 0:00:30]} Rec8 {[%emt 0:00:18]} 27. Rae1 {[%emt 0:00:18]} a5 {[%emt 0:00:33]} 28. Ra1 {[%emt 0:00:15]} Ra8 {[%emt 0:00:07]} 29. Re4 {[%emt 0:00:16]} Rca6 {[%emt 0:00:44]} 30. Be3 {[%emt 0:00:11]} Rc8 {[%emt 0:00:44]} 31. Bd2 {[%emt 0:00:09]} Raa8 {[%emt 0:00:04]} 32. Rae1 {[%emt 0:00:11]} Rc6 {[%emt 0:00:07]} 33. Ra1 {[%emt 0:00:09]} Rca6 {[%emt 0:00:47]} 34. Be3 {[%emt 0:00:04]} a4 {[%emt 0:00:18]} 35. bxa4 {[%emt 0:00:08]} bxa4 {[%emt 0:00:06]} 36. Bc5 {[%emt 0:00:12]} a3 {[%emt 0:00:09]} 37. Rb4 {[%emt 0:00:15]} Bd5 {[%emt 0:00:01]} 38. c4 {[%emt 0:00:07]} Bc6 {[%emt 0:00:02]} 39. Ra2 {[%emt 0:00:23]} Ra5 {[%emt 0:00:04]} 40. d4 {[%emt 0:00:10]} Kg6 {[%emt 0:00:31]} 41. Rb3 {[%emt 0:00:13]} Ra4 {[%emt 0:01:34]} 42. Rbxa3 {[%emt 0:00:09]} R8a6 {[%emt 0:00:10]} 43. Rxa4 {[%emt 0:00:07]} Rxa4 {[%emt 0:00:06]} 44. Rxa4 {[%emt 0:00:07]} Bxa4 {[%emt 0:00:01]} 45. Ke3 {[%emt 0:00:16]} Bxc2 {[%emt 0:00:02]} 46. d5 {[%emt 0:00:08]} Kf7 {[%emt 0:00:13]} 47. Kd4 {[%emt 0:00:03]} Ke8 {[%emt 0:00:03]} 48. Bb4 {[%emt 0:00:13]} Kd7 {[%emt 0:00:05]} 49. Bf8 {[%emt 0:00:16]} g6 {[%emt 0:00:13]} 50. c5 {[%emt 0:00:17]} h5 {[%emt 0:00:18]} 51. Bg7 {[%emt 0:00:09]} f5 {[%emt 0:00:03]} 52. h4 {[%emt 0:00:08]} Be4 {[%emt 0:00:48]} 53. g3 {[%emt 0:00:01]} Bb1 {[%emt 0:00:02]} 54. Be5 {[%emt 0:00:13]} Bc2 {[%emt 0:00:04]} 55. Bf4 {[%emt 0:00:08]} Bb3 {[%emt 0:00:01]} 56. Ke5 {[%emt 0:00:06]} Ba2 {[%emt 0:00:18]} 57. d6 {[%emt 0:00:21]} Bb3 {[%emt 0:00:27]} 58. Kf6 {[%emt 0:00:08]} Bd1 {[%emt 0:00:07]} 59. Kxg6 {[%emt 0:00:05]} Bg4 {[%emt 0:00:02]} 60. Kf6 {[%emt 0:00:12]} Bh3 {[%emt 0:00:01]} 61. Be3 {[%emt 0:00:13]} Bg4 {[%emt 0:00:05]} 62. Bd4 {[%emt 0:00:13]} Bh3 {[%emt 0:00:08]} 63. Kg6 {[%emt 0:00:04]} Bg4 {[%emt 0:00:01]} 64. Kf7 {[%emt 0:00:04]} Bd1 {[%emt 0:00:05]} 65. Kf6 {[%emt 0:00:12]} Bg4 {[%emt 0:00:01]} 66. Be3 {[%emt 0:00:06]} Bh3 {[%emt 0:00:09]} 67. Ke5 {[%emt 0:00:10]} Bg4 {[%emt 0:00:05]} 68. Bf4 {[%emt 0:00:09]} Bh3 {[%emt 0:00:05]} 69. Kf6 {[%emt 0:00:14]} Bg4 {[%emt 0:00:03]} 70. Kg6 {[%emt 0:00:04]} Bd1 {[%emt 0:00:06]} 71. Kxf5 {[%emt 0:00:05]} Be2 {[%emt 0:00:01]} 72. Ke5 {[%emt 0:00:07]} Bf3 {[%emt 0:00:02]} 73. Kd4 {[%emt 0:00:07]} Bg4 {[%emt 0:00:03]} 74. Kc4 {[%emt 0:00:06]} Kc6 {[%emt 0:00:01]} 75. Kb4 {[%emt 0:00:07]} Be6 {[%emt 0:00:02]} 76. Be3 {[%emt 0:00:09]} Bd7 {[%emt 0:00:08]} 77. Ka5 {[%emt 0:00:08]} Be6 {[%emt 0:00:10]} 1/2-1/2

[Event "RUS-chT Men Rapid 2019"]
[Site "Sochi"]
[Date "2019.10.18"]
[Round "3.25"]
[White "Jary, Sergey"]
[Black "Zakaryan, David"]
[Result "0-1"]
[ECO "E09"]
[WhiteElo "2275"]
[BlackElo "2338"]
[Annotator "NA"]
[PlyCount "104"]
[EventDate "2019.10.18"]
[EventType "swiss"]
[EventCountry "RUS"]
[SourceTitle "playchess.com"]
[Source "ChessBase"]
[SourceQuality "1"]
[TimeControl "900+10"]

1. Nf3 {[%emt 0:00:00]} d5 {[%emt 0:00:00]} 2. c4 {[%emt 0:00:04]} e6 {[%emt 0:00:00]} 3. g3 {[%emt 0:00:37]} Nf6 {[%emt 0:00:00]} 4. Bg2 {[%emt 0:00:08]} Be7 {[%emt 0:00:08]} 5. O-O {[%emt 0:00:26]} O-O {[%emt 0:00:03]} 6. d4 {[%emt 0:00:58]} c6 {[%emt 0:00:08]} 7. Qc2 {[%emt 0:00:26]} Nbd7 {[%emt 0:00:07]} 8. Nbd2 {[%emt 0:00:08]} Re8 {[%emt 0:00:15]} 9. e4 {[%emt 0:00:11]} dxe4 {[%emt 0:00:02]} 10. Nxe4 {[%emt 0:00:02]} Nxe4 {[%emt 0:00:10]} 11. Qxe4 {[%emt 0:00:03]} c5 {[%emt 0:00:25]} 12. Rd1 {[%emt 0:01:05]} Qb6 {[%emt 0:01:00]} 13. b3 {[%emt 0:00:37]} cxd4 {[%emt 0:00:04]} 14. Nxd4 {[%emt 0:00:33]} Nc5 {[%emt 0:00:12]} 15. Qc2 {[%emt 0:01:28]} Bd7 {[%emt 0:00:27]} 16. Be3 {[%emt 0:00:35]} Rad8 {[%emt 0:00:30]} 17. Rab1 {[%emt 0:01:23]} a5 {[%emt 0:01:48]} 18. h3 {[%emt 0:02:30]} g6 {[%emt 0:01:02]} 19. Ne2 {[%emt 0:00:27]} Bc6 {[%emt 0:00:26]} 20. Nc3 {[%emt 0:00:21]} Bxg2 {[%emt 0:00:06]} 21. Kxg2 {[%emt 0:00:01]} Qc6+ {[%emt 0:00:05]} 22. Kg1 {[%emt 0:00:03]} f5 {[%emt 0:00:55]} 23. Qe2 {[%emt 0:00:50]} Nd7 {[%emt 0:00:38]} 24. Nb5 {[%emt 0:00:40]} Ne5 {[%emt 0:00:19]} 25. f4 {[%emt 0:00:22]} Nf7 {[%emt 0:01:04]} 26. Qg2 {[%emt 0:00:10]} Bc5 {[%emt 0:00:38]} 27. Bxc5 {[%emt 0:00:02]} Qxc5+ {[%emt 0:00:01]} 28. Qf2 {[%emt 0:00:01]} Qc6 {[%emt 0:00:38]} 29. Qg2 {[%emt 0:00:01]} Qc8 {[%emt 0:01:02]} 30. Qf3 {[%emt 0:02:15]} e5 {[%emt 0:00:04]} 31. Rxd8 {[%emt 0:00:37]} Rxd8 {[%emt 0:00:22]} 32. Rd1 {[%emt 0:00:03]} e4 {[%emt 0:00:36]} 33. Rxd8+ {[%emt 0:00:04]} Qxd8 {[%emt 0:00:01]} 34. Qe2 {[%emt 0:00:07]} h5 {[%emt 0:00:02]} 35. h4 {[%emt 0:00:23]} Nh6 {[%emt 0:00:03]} 36. Kg2 {[%emt 0:00:04]} Ng4 {[%emt 0:00:02]} 37. Nc3 {[%emt 0:00:04]} Qd4 {[%emt 0:00:06]} 38. Nd5 {[%emt 0:00:01]} e3 {[%emt 0:00:15]} 39. Kg1 {[%emt 0:01:46]} Kh7 {[%emt 0:00:22]} 40. Kf1 {[%emt 0:00:13]} Qe4 {[%emt 0:00:08]} 41. Kg1 {[%emt 0:00:03]} Qd4 {[%emt 0:00:44]} 42. Kg2 {[%emt 0:00:05]} Kg7 {[%emt 0:00:17]} 43. Kf1 {[%emt 0:00:04]} Qe4 {[%emt 0:00:14]} 44. Kg1 {[%emt 0:00:01]} Qd4 {[%emt 0:00:18]} 45. Kf1 {[%emt 0:00:03]} Kf7 {[%emt 0:00:04]} 46. Kg2 {[%emt 0:00:06]} Qd2 {[%emt 0:00:08]} 47. Qxd2 {[%emt 0:00:30]} exd2 {[%emt 0:00:01]} 48. Nc3 {[%emt 0:00:01]} Ne3+ {[%emt 0:00:03]} 49. Kf3 {[%emt 0:00:02]} d1=Q+ {[%emt 0:00:03]} 50. Nxd1 {[%emt 0:00:01]} Nxd1 {[%emt 0:00:02]} 51. a3 {[%emt 0:00:02]} Ke6 {[%emt 0:00:07]} 52. b4 {[%emt 0:00:07]} Nb2 {[%emt 0:00:07]} 0-1